bitfinex/quotes_BTCUSD_20250326
["timestamp","ask_amount","ask_price","bid_price","bid_amount"]
[1742988794541,0.41425764,88239.0,88224.0,0.02317351]
[1742988795122,0.42641533,88239.0,88224.0,0.02317351]
[1742988795519,0.01215769,88239.0,88226.0,0.08196682]
[1742988795766,0.003,88239.0,88226.0,0.0797]
[1742988796559,0.006,88239.0,88226.0,0.0798697]
[1742988797200,0.01831989,88239.0,88226.0,0.08213635]
[1742988797588,0.006,88239.0,88227.0,0.0792]
[1742988797784,0.006,88239.0,88228.0,0.00226647]
[1742988798548,0.01552756,88239.0,88228.0,0.00226647]
[1742988798970,0.01552756,88239.0,88227.0,0.0792]
[1742988798971,0.003,88239.0,88227.0,0.0792]
[1742988799212,0.006,88239.0,88227.0,0.0792]
[1742988799418,0.003,88239.0,88227.0,0.0792]
[1742988799621,0.003,88239.0,88228.0,0.08506658]
[1742988799622,0.005,88239.0,88228.0,0.08506658]
[1742988799823,0.005,88239.0,88229.0,0.16375764]
[1742988800032,0.005,88239.0,88231.0,0.0828]
[1742988800033,0.003,88239.0,88231.0,0.0828]
[1742988800263,0.002,88239.0,88233.0,0.0755]
[1742988800392,0.002,88239.0,88235.0,0.0755]
[1742988800602,0.002,88239.0,88237.0,0.0771]
[1742988800941,0.002,88239.0,88238.0,0.07936621]
[1742988801097,0.00038123,88255.0,88238.0,0.07936621]
[1742988801304,0.002,88239.0,88238.0,0.07936621]
[1742988801905,0.00038123,88255.0,88238.0,0.07936621]
[1742988802089,0.001,88239.0,88238.0,0.07936621]
[1742988802729,0.003,88239.0,88238.0,0.07936621]
[1742988802933,0.001,88239.0,88238.0,0.07936621]
[1742988803328,0.002,88239.0,88238.0,0.10243239]
[1742988803528,0.001,88239.0,88238.0,0.10243239]
[1742988803778,0.002,88239.0,88238.0,0.10243239]
[1742988804143,0.001,88239.0,88238.0,0.10243239]
[1742988804782,0.002,88239.0,88238.0,0.10243239]
[1742988805163,0.001,88239.0,88238.0,0.10243239]
[1742988805409,0.002,88239.0,88238.0,0.10243239]
[1742988805819,0.001,88239.0,88238.0,0.10243239]
[1742988805979,0.002,88239.0,88238.0,0.10243239]
[1742988806363,0.001,88239.0,88238.0,0.66020072]
[1742988806537,0.001,88239.0,88238.0,0.67247536]
[1742988806754,0.00038123,88255.0,88239.0,0.14044085]
[1742988806912,0.00038123,88255.0,88241.0,0.01454085]
[1742988807116,0.00038123,88255.0,88245.0,0.01454085]
[1742988807336,0.00038123,88255.0,88249.0,0.1259]
[1742988807516,0.00038123,88255.0,88251.0,0.0816]
[1742988807719,0.00038123,88255.0,88253.0,0.0816]
[1742988807920,0.00038123,88255.0,88254.0,0.19812331]
[1742988808875,0.00138123,88255.0,88254.0,0.24752331]
[1742988809105,0.00138123,88255.0,88254.0,0.24525764]
[1742988809307,0.00438123,88255.0,88254.0,0.24525764]
[1742988809479,0.00138123,88255.0,88254.0,0.24525764]
[1742988809820,0.00238123,88255.0,88254.0,0.24525764]
[1742988810045,0.00138123,88255.0,88254.0,0.24525764]
[1742988810249,0.00038123,88255.0,88254.0,0.24525764]
[1742988810483,0.00138123,88255.0,88254.0,0.24525764]
[1742988811167,0.00038123,88255.0,88254.0,0.24525764]
[1742988812113,0.00038123,88255.0,88254.0,0.64316833]
[1742988813306,0.00038123,88255.0,88254.0,0.66613621]
[1742988815096,0.00038123,88255.0,88254.0,0.79193621]
[1742988815913,0.00038123,88255.0,88254.0,1.38013621]
[1742988822461,0.00038123,88255.0,88254.0,1.25433621]
[1742988822687,0.00038123,88255.0,88254.0,1.38013621]
[1742988825044,0.00038123,88255.0,88254.0,1.25433621]
[1742988825256,0.00038123,88255.0,88254.0,1.38013621]
[1742988825449,0.00038123,88255.0,88254.0,1.25433621]
[1742988825678,0.00038123,88255.0,88254.0,1.38013621]
[1742988834418,0.00038123,88255.0,88254.0,1.13487857]
[1742988834817,0.00038123,88255.0,88254.0,1.00907857]
[1742988835023,0.00038123,88255.0,88254.0,1.13487857]
[1742988835455,0.00038123,88255.0,88254.0,1.00907857]
[1742988835984,0.00038123,88255.0,88254.0,1.13487857]
[1742988836192,0.00038123,88255.0,88254.0,1.00907857]
[1742988836396,0.00038123,88255.0,88254.0,1.13487857]
[1742988836826,0.00038123,88255.0,88254.0,1.00907857]
[1742988837033,0.00038123,88255.0,88254.0,1.13487857]
[1742988837836,0.0125861,88255.0,88254.0,1.13487857]
[1742988838042,0.00038123,88255.0,88254.0,1.13487857]
[1742988840227,0.01812276,88255.0,88254.0,1.13487857]
[1742988840467,0.03044206,88255.0,88254.0,1.13487857]
[1742988840719,0.01270053,88255.0,88254.0,1.13487857]
[1742988840958,0.00038123,88255.0,88254.0,1.13487857]
[1742988841198,0.00038123,88255.0,88254.0,1.21087857]
[1742988844351,0.00038123,88255.0,88254.0,1.13487857]
[1742988844934,0.00038123,88255.0,88254.0,1.11191069]
[1742988847023,0.01812398,88255.0,88254.0,1.11191069]
[1742988847430,0.01812398,88255.0,88254.0,0.714]
[1742988849067,0.01812398,88255.0,88254.0,0.5882]
[1742988851641,0.00038123,88255.0,88254.0,0.5882]
[1742988854346,0.00038123,88255.0,88249.0,0.1258]
[1742988856140,0.01812452,88255.0,88249.0,0.1258]
[1742988860887,0.00038123,88255.0,88249.0,0.1258]
[1742988861487,0.00038123,88255.0,88250.0,0.1258]
[1742988862268,0.00038123,88255.0,88245.0,0.02268579]
[1742988862269,0.3,88253.0,88245.0,0.02268579]
[1742988862477,0.3,88253.0,88243.0,0.5882]
[1742988862867,0.3,88251.0,88243.0,0.4886]
[1742988864969,0.303,88251.0,88243.0,0.4886]
[1742988865377,0.306,88251.0,88243.0,0.4886]
[1742988866590,0.303,88251.0,88243.0,0.4886]
[1742988866791,0.0177461,88250.0,88243.0,0.4886]
[1742988868361,0.0177461,88250.0,88243.0,0.48834452]
[1742988868779,0.0237461,88250.0,88243.0,0.48834452]
[1742988868950,0.0207461,88250.0,88243.0,0.48834452]
[1742988869378,0.0237461,88250.0,88243.0,0.48834452]
[1742988869573,0.0207461,88250.0,88243.0,0.48834452]
[1742988870359,0.078,88249.0,88243.0,0.48834452]
[1742988870759,0.3482,88248.0,88243.0,0.48834452]
[1742988871970,0.3482,88248.0,88231.0,0.0001697]
[1742988872170,0.3,88240.0,88231.0,0.0001697]
[1742988872391,0.3,88240.0,88224.0,0.38085899]
[1742988873272,0.3,88240.0,88224.0,0.28115899]
[1742988874538,0.302,88240.0,88224.0,0.28115899]
[1742988874751,0.3,88240.0,88224.0,0.28115899]
[1742988874963,0.302,88240.0,88224.0,0.28115899]
[1742988875109,0.305,88240.0,88224.0,0.28115899]
[1742988875332,0.303,88240.0,88224.0,0.28115899]
[1742988875753,0.306,88240.0,88224.0,0.28115899]
[1742988876179,0.0177479,88237.0,88224.0,0.28115899]
[1742988876833,0.0177479,88237.0,88222.0,0.02248693]
[1742988877638,0.0197479,88237.0,88222.0,0.02248693]
[1742988877896,0.0177479,88237.0,88222.0,0.02248693]
[1742988878094,0.0177479,88237.0,88222.0,0.02265663]
[1742988878314,0.0197479,88237.0,88222.0,0.02265663]
[1742988878551,0.0217479,88237.0,88222.0,0.02265663]
[1742988878846,0.04706664,88236.0,88222.0,0.02265663]
[1742988880342,0.3812,88235.0,88222.0,0.0001697]
[1742988881515,0.14049305,88232.0,88222.0,0.0001697]
[1742988881706,0.3812,88235.0,88222.0,0.0001697]
[1742988882092,0.0812,88235.0,88222.0,0.0001697]
[1742988882506,0.0832,88235.0,88222.0,0.0001697]
[1742988882691,0.0822,88235.0,88222.0,0.0001697]
[1742988882875,0.0812,88235.0,88222.0,0.0001697]
[1742988883072,0.0832,88235.0,88222.0,0.0001697]
[1742988884417,0.0852,88235.0,88222.0,0.0001697]
[1742988884960,0.09223359,88232.0,88222.0,0.0001697]
[1742988886340,0.09423359,88232.0,88222.0,0.0001697]
[1742988886954,0.01774852,88230.0,88222.0,0.0001697]
[1742988888374,0.01874852,88230.0,88222.0,0.0001697]
[1742988888994,0.01974852,88230.0,88222.0,0.0001697]
[1742988892523,0.002,88230.0,88222.0,0.0001697]
[1742988893035,0.08923359,88232.0,88222.0,0.0001697]
[1742988894224,0.09023359,88232.0,88222.0,0.0001697]
[1742988894423,0.001,88232.0,88222.0,0.0001697]
[1742988894647,0.001,88232.0,88223.0,0.0483]
[1742988894890,0.001,88232.0,88225.0,0.0785]
[1742988895226,0.001,88232.0,88227.0,0.0785]
[1742988895584,0.0003394,88235.0,88227.0,0.0785]
[1742988895825,0.0003394,88235.0,88228.0,0.12584]
[1742988896136,0.001,88232.0,88229.0,0.12584]
[1742988896443,0.002,88232.0,88231.0,0.02294521]
[1742988896909,0.001,88232.0,88231.0,0.02294521]
[1742988897280,0.01774688,88234.0,88231.0,0.02294521]
[1742988898778,0.001,88232.0,88231.0,0.02294521]
[1742988899149,0.01774688,88234.0,88231.0,0.02294521]
[1742988899348,0.01874688,88234.0,88231.0,0.02294521]
[1742988899546,0.01974688,88234.0,88231.0,0.02294521]
[1742988900153,0.001,88232.0,88231.0,0.02294521]
[1742988900586,0.01774688,88234.0,88231.0,0.02294521]
[1742988900786,0.01874688,88234.0,88231.0,0.02294521]
[1742988902181,0.01774688,88234.0,88231.0,0.02294521]
[1742988902600,0.001,88232.0,88231.0,0.02294521]
[1742988902804,0.001,88234.0,88231.0,0.02294521]
[1742988903344,0.002,88234.0,88231.0,0.02294521]
[1742988903680,0.001,88234.0,88231.0,0.02294521]
[1742988904652,0.001,88232.0,88231.0,0.02294521]
[1742988906688,0.0003394,88235.0,88231.0,0.02294521]
[1742988906868,0.001,88234.0,88231.0,0.02294521]
[1742988907019,0.01774709,88233.0,88231.0,0.02294521]
[1742988907440,0.001,88232.0,88231.0,0.02294521]
[1742988907676,0.01774709,88233.0,88231.0,0.02294521]
[1742988909087,0.01874709,88233.0,88231.0,0.02294521]
[1742988909841,0.001,88232.0,88231.0,0.02294521]
[1742988910229,0.01874709,88233.0,88231.0,0.02294521]
[1742988910481,0.01974709,88233.0,88231.0,0.02294521]
[1742988910643,0.002,88233.0,88231.0,0.02294521]
[1742988910857,0.001,88233.0,88231.0,0.02294521]
[1742988911275,0.001,88232.0,88231.0,0.02294521]
[1742988911732,0.001,88232.0,88231.0,0.2736437]
[1742988912983,0.001,88232.0,88231.0,0.55480269]
[1742988913190,0.001,88232.0,88231.0,0.68060269]
[1742988913391,0.001,88232.0,88231.0,0.71697501]
[1742988913937,0.0003394,88235.0,88233.0,0.1225]
[1742988914150,0.0003394,88235.0,88234.0,0.28893675]
[1742988915330,0.0003394,88235.0,88234.0,0.25129849]
[1742988915523,0.0003394,88235.0,88234.0,0.25229849]
[1742988916682,0.0003394,88235.0,88234.0,0.25429849]
[1742988917251,0.0003394,88235.0,88234.0,0.25229849]
[1742988917454,0.0003394,88235.0,88234.0,0.25429849]
[1742988917664,0.0003394,88235.0,88234.0,0.53445748]
[1742988917864,0.0003394,88235.0,88234.0,0.53545748]
[1742988918308,0.0003394,88235.0,88234.0,0.53445748]
[1742988918720,0.0003394,88235.0,88234.0,0.53545748]
[1742988918928,0.0003394,88235.0,88234.0,0.53245748]
[1742988919089,0.0003394,88235.0,88234.0,0.53445748]
[1742988919289,0.0003394,88235.0,88234.0,0.53545748]
[1742988919769,0.0003394,88235.0,88234.0,0.53345748]
[1742988919916,0.0003394,88235.0,88234.0,0.63521019]
[1742988920128,0.0003394,88235.0,88234.0,0.63721019]
[1742988923214,0.0003394,88235.0,88234.0,0.53545748]
[1742988924739,0.0003394,88235.0,88234.0,0.53445748]
[1742988924945,0.0003394,88235.0,88234.0,1.12269748]
[1742988925326,0.0003394,88235.0,88234.0,1.12469748]
[1742988925746,0.0003394,88235.0,88234.0,1.12269748]
[1742988925976,0.0003394,88235.0,88234.0,1.12069748]
[1742988926165,0.0003394,88235.0,88234.0,1.12569748]
[1742988926366,0.0003394,88235.0,88234.0,1.20829748]
[1742988926788,0.0003394,88235.0,88234.0,1.20529748]
[1742988926989,0.0003394,88235.0,88234.0,1.20829748]
[1742988928352,0.0003394,88235.0,88234.0,1.06295663]
[1742988928559,0.0003394,88235.0,88234.0,0.99519899]
[1742988928802,0.0003394,88235.0,88234.0,1.00119899]
[1742988929331,0.0003394,88235.0,88234.0,0.86939899]
[1742988929528,0.0003394,88235.0,88234.0,0.99819899]
[1742988929764,0.0003394,88235.0,88234.0,0.99519899]
[1742988930385,0.0003394,88235.0,88234.0,0.99819899]
[1742988931736,0.0003394,88235.0,88234.0,1.00019899]
[1742988932951,0.01204021,88235.0,88234.0,0.87439899]
[1742988933151,0.01204021,88235.0,88234.0,1.00019899]
[1742988933960,0.0003394,88235.0,88234.0,0.87439899]
[1742988934137,0.0003394,88235.0,88234.0,1.00019899]
[1742988936506,0.0003394,88235.0,88234.0,0.99519899]
[1742988936935,0.0003394,88235.0,88234.0,0.86939899]
[1742988937161,0.0003394,88235.0,88234.0,0.99519899]
[1742988938188,0.0764394,88235.0,88234.0,0.58824]
[1742988938412,0.3482394,88235.0,88234.0,0.58824]
[1742988938632,0.36246742,88235.0,88234.0,0.58824]
[1742988939854,0.36446742,88235.0,88234.0,0.58824]
[1742988940358,0.36646742,88235.0,88234.0,0.58824]
[1742988940756,0.36646742,88235.0,88234.0,0.48864]
[1742988941773,0.36446742,88235.0,88234.0,0.48864]
[1742988942195,0.36646742,88235.0,88234.0,0.48864]
[1742988942614,0.36246742,88235.0,88234.0,0.48864]
[1742988942841,0.36446742,88235.0,88234.0,0.48864]
[1742988943027,0.36646742,88235.0,88234.0,0.48864]
[1742988943228,0.31856742,88235.0,88234.0,0.48864]
[1742988945308,0.31656742,88235.0,88234.0,0.48864]
[1742988945509,0.31456742,88235.0,88234.0,0.48864]
[1742988945715,0.31656742,88235.0,88234.0,0.48864]
[1742988945956,0.31856742,88235.0,88234.0,0.48864]
[1742988946176,0.31656742,88235.0,88234.0,0.48864]
[1742988946678,0.31856742,88235.0,88234.0,0.48864]
[1742988946977,0.33631475,88235.0,88234.0,0.48864]
[1742988948885,0.3,88234.0,88232.0,0.0001697]
[1742988949094,0.01417694,88233.0,88232.0,0.0001697]
[1742988950122,0.08,88233.0,88232.0,0.0001697]
[1742988950272,0.09417744,88233.0,88232.0,0.0001697]
[1742988950474,0.09417744,88233.0,88222.0,0.4891691]
[1742988950657,0.3,88231.0,88222.0,0.4891691]
[1742988950999,0.01418192,88230.0,88222.0,0.4891691]
[1742988952327,0.002,88233.0,88223.0,0.0786]
[1742988952501,0.01418142,88232.0,88223.0,0.0786]
[1742988952706,0.001,88233.0,88223.0,0.0786]
[1742988952940,0.01418142,88232.0,88223.0,0.0786]
[1742988953115,0.01172755,88240.0,88223.0,0.0786]
[1742988953116,0.01172755,88240.0,88225.0,0.0459]
[1742988954927,0.001,88232.0,88225.0,0.0459]
[1742988955476,0.001,88233.0,88225.0,0.0459]
[1742988956059,0.0013394,88235.0,88225.0,0.0459]
[1742988956285,0.001,88232.0,88225.0,0.0459]
[1742988956881,0.01774731,88231.0,88225.0,0.0459]
[1742988958947,0.01774731,88231.0,88225.0,0.1258]
[1742988959912,0.01874731,88231.0,88225.0,0.1258]
[1742988961024,0.01874731,88231.0,88225.0,0.1101]
[1742988961695,0.001,88231.0,88226.0,0.00226682]
[1742988962266,0.001,88231.0,88225.0,0.1101]
[1742988962664,0.0003394,88235.0,88225.0,0.1101]
[1742988962865,0.002,88231.0,88225.0,0.1101]
[1742988963066,0.003,88231.0,88225.0,0.1101]
[1742988963265,0.002,88231.0,88225.0,0.1101]
[1742988963689,0.003,88231.0,88225.0,0.1101]
[1742988963929,0.003,88231.0,88225.0,0.1102697]
[1742988964351,0.0013394,88231.0,88225.0,0.1102697]
[1742988964556,0.0013394,88231.0,88225.0,0.0001697]
[1742988964667,0.0033394,88231.0,88225.0,0.0001697]
[1742988966231,0.01774757,88230.0,88225.0,0.0001697]
[1742988967685,0.01874757,88230.0,88225.0,0.0001697]
[1742988972565,0.001,88230.0,88225.0,0.0001697]
[1742988975243,0.001,88230.0,88226.0,0.00226682]
[1742988975359,0.001,88230.0,88229.0,0.02255058]
[1742988976126,0.001,88230.0,88225.0,0.0001697]
[1742988977365,0.0003394,88231.0,88225.0,0.0001697]
[1742988977754,0.001,88230.0,88225.0,0.0001697]
[1742988978154,0.0003394,88231.0,88225.0,0.0001697]
[1742988978547,0.001,88230.0,88225.0,0.0001697]
[1742988979117,0.0003394,88231.0,88225.0,0.0001697]
[1742988979558,0.0013394,88231.0,88225.0,0.0001697]
[1742988979763,0.01774872,88230.0,88225.0,0.0001697]
[1742988980737,0.0033394,88231.0,88225.0,0.0001697]
[1742988981713,0.0118094,88230.0,88225.0,0.0001697]
[1742988981915,0.0128094,88230.0,88225.0,0.0001697]
[1742988982110,0.0128094,88230.0,88222.0,0.3897388]
[1742988982316,0.0118094,88230.0,88222.0,0.3897388]
[1742988984662,0.0118094,88230.0,88222.0,0.4729388]
[1742988984867,0.0003394,88231.0,88222.0,0.4729388]
[1742988985293,0.001,88230.0,88223.0,0.00226667]
[1742988985501,0.01774732,88229.0,88223.0,0.00226667]
[1742988986299,0.0033394,88231.0,88223.0,0.00226667]
[1742988986475,0.0023394,88231.0,88223.0,0.00226667]
[1742988986689,0.0023394,88231.0,88224.0,0.11425764]
[1742988986893,0.0023394,88231.0,88226.0,0.0829]
[1742988987093,0.0023394,88231.0,88227.0,0.11652411]
[1742988987399,0.0003394,88231.0,88227.0,0.11652411]
[1742988987818,0.001,88229.0,88227.0,0.11652411]
[1742988988204,0.0013394,88231.0,88227.0,0.11652411]
[1742988988603,0.0033394,88231.0,88227.0,0.11652411]
[1742988989244,0.0023394,88231.0,88227.0,0.11652411]
[1742988989649,0.0033394,88231.0,88227.0,0.11652411]
[1742988991181,0.0013394,88231.0,88227.0,0.11652411]
[1742988991657,0.0033394,88231.0,88227.0,0.11652411]
[1742988993058,0.0023394,88231.0,88227.0,0.11652411]
[1742988993280,0.0033394,88231.0,88227.0,0.11652411]
[1742988997037,0.0033394,88231.0,88228.0,0.58836]
[1742988997215,0.0033394,88231.0,88229.0,0.0022665]
[1742988997370,0.0033394,88231.0,88230.0,0.1258]
[1742988998026,0.0003394,88231.0,88230.0,0.1258]
[1742988998401,0.0033394,88231.0,88230.0,0.1258]
[1742988999792,0.0023394,88231.0,88230.0,0.1258]
[1742989000705,0.0013394,88231.0,88230.0,0.1258]
[1742989001152,0.0033394,88231.0,88230.0,0.1258]
[1742989001588,0.0023394,88231.0,88230.0,0.1258]
[1742989001813,0.0003394,88231.0,88230.0,0.1258]
[1742989002094,0.0023394,88231.0,88230.0,0.1258]
[1742989002588,0.0003394,88231.0,88230.0,0.1258]
[1742989003004,0.0023394,88231.0,88230.0,0.1258]
[1742989003223,0.0013394,88231.0,88230.0,0.1258]
[1742989006000,0.0003394,88231.0,88230.0,0.1258]
[1742989006536,0.0013394,88231.0,88230.0,0.71412]
[1742989007675,0.0013394,88231.0,88230.0,0.79602]
[1742989007961,0.0003394,88231.0,88230.0,0.79602]
[1742989008129,0.0013394,88231.0,88230.0,0.79602]
[1742989008735,0.0003394,88231.0,88230.0,0.79602]
[1742989008955,0.0013394,88231.0,88230.0,0.92481849]
[1742989009206,0.0013394,88231.0,88230.0,1.25107748]
[1742989009840,0.0013394,88231.0,88230.0,1.28647249]
[1742989011469,0.0003394,88231.0,88230.0,1.28647249]
[1742989011722,0.0003394,88231.0,88230.0,1.28847249]
[1742989011922,0.0003394,88231.0,88230.0,1.28647249]
[1742989012165,0.0003394,88231.0,88230.0,1.28847249]
[1742989012403,0.0003394,88231.0,88230.0,1.25307748]
[1742989012541,0.0003394,88231.0,88230.0,1.25207748]
[1742989014006,0.0003394,88231.0,88230.0,1.25407748]
[1742989014158,0.0003394,88231.0,88230.0,1.25207748]
[1742989014609,0.0003394,88231.0,88230.0,1.25307748]
[1742989014984,0.0003394,88231.0,88230.0,1.25407748]
[1742989015632,0.0003394,88231.0,88230.0,1.25307748]
[1742989015780,0.0003394,88231.0,88230.0,1.25407748]
[1742989017211,0.0003394,88231.0,88230.0,1.25107748]
[1742989017408,0.0003394,88231.0,88230.0,1.12527748]
[1742989017614,0.0003394,88231.0,88230.0,1.25203748]
[1742989018029,0.0003394,88231.0,88230.0,1.25103748]
[1742989018241,0.0003394,88231.0,88230.0,1.28840733]
[1742989018450,0.0003394,88231.0,88230.0,1.28940733]
[1742989020017,0.0003394,88231.0,88230.0,1.39125637]
[1742989023586,0.0003394,88231.0,88230.0,1.35588652]
[1742989026438,0.0003394,88231.0,88230.0,1.25403748]
[1742989029736,0.0003394,88231.0,88230.0,1.20893748]
[1742989031035,0.0003394,88231.0,88230.0,1.08317748]
[1742989031217,0.0003394,88231.0,88230.0,1.20893748]
[1742989031908,0.0003394,88231.0,88230.0,1.19439663]
[1742989032131,0.0003394,88231.0,88230.0,1.11249663]
[1742989036166,0.0003394,88231.0,88230.0,0.98673663]
[1742989036379,0.0003394,88231.0,88230.0,1.11249663]
[1742989041691,0.0003394,88231.0,88230.0,0.98673663]
[1742989041903,0.0003394,88231.0,88230.0,1.11249663]
[1742989045833,0.0003394,88231.0,88230.0,1.20283748]
[1742989048863,0.0003394,88231.0,88230.0,1.25213748]
[1742989050201,0.0003394,88231.0,88230.0,1.28753539]
[1742989051240,0.0003394,88231.0,88230.0,1.63027939]
[1742989051761,0.0003394,88231.0,88230.0,1.61253539]
[1742989052173,0.0003394,88231.0,88230.0,1.61507539]
[1742989052791,0.0003394,88231.0,88230.0,1.59007539]
[1742989052996,0.0003394,88231.0,88230.0,1.73947539]
[1742989053197,0.0003394,88235.0,88234.0,0.46394085]
[1742989053432,0.0003394,88250.0,88247.0,0.01454085]
[1742989053637,0.0003394,88250.0,88249.0,0.25069849]
[1742989053841,0.0003394,88250.0,88249.0,0.2860964]
[1742989054243,0.0003394,88250.0,88249.0,0.5860964]
[1742989054450,0.0003394,88250.0,88249.0,0.6110964]
[1742989054670,0.0003394,88250.0,88249.0,0.89691599]
[1742989055414,0.0013394,88250.0,88249.0,0.90191599]
[1742989056551,0.0013394,88250.0,88249.0,0.91040894]
[1742989056784,0.0003394,88250.0,88249.0,0.90540894]
[1742989056891,0.0003394,88250.0,88249.0,0.91040894]
[1742989057130,0.0023394,88250.0,88249.0,0.91540894]
[1742989057356,0.0013394,88250.0,88249.0,0.91040894]
[1742989057850,0.0023394,88250.0,88249.0,0.91540894]
[1742989058584,0.0003394,88270.0,88261.0,0.122]
[1742989058791,0.00038049,88270.0,88266.0,0.11425764]
[1742989059006,0.00038049,88270.0,88268.0,0.01454085]
[1742989059177,0.00038049,88270.0,88269.0,0.11652273]
[1742989061151,0.00038049,88270.0,88269.0,0.11852273]
[1742989061379,0.00038049,88270.0,88269.0,0.12052273]
[1742989063982,0.00038049,88270.0,88269.0,0.70856273]
[1742989064212,0.00038049,88270.0,88269.0,0.70629764]
[1742989064412,0.00038049,88270.0,88269.0,0.9843966]
[1742989065239,0.00038049,88270.0,88269.0,1.00740952]
[1742989066187,0.00038049,88270.0,88269.0,1.02195037]
[1742989072837,0.00038049,88270.0,88269.0,1.14763037]
[1742989074511,0.00038049,88270.0,88269.0,1.02195037]
[1742989074723,0.00038049,88270.0,88269.0,1.14763037]
[1742989075711,0.00038049,88270.0,88269.0,1.02195037]
[1742989076033,0.00038049,88270.0,88269.0,1.14763037]
[1742989086163,0.00038049,88270.0,88269.0,1.18298986]
[1742989105967,0.00038049,88270.0,88269.0,1.25918986]
[1742989106880,0.00038049,88270.0,88269.0,1.25718986]
[1742989107092,0.00038049,88270.0,88269.0,1.25514986]
[1742989107262,0.00038049,88270.0,88269.0,1.25814986]
[1742989107467,0.00038049,88270.0,88269.0,1.26114986]
[1742989110872,0.00038049,88270.0,88269.0,1.18494986]
[1742989113461,0.00038049,88270.0,88269.0,1.18244986]
[1742989117907,0.00038049,88270.0,88269.0,1.17994986]
[1742989119832,0.0003394,88277.0,88271.0,0.01454085]
[1742989119993,0.0003394,88277.0,88273.0,0.01454085]
[1742989120190,0.0003394,88277.0,88274.0,0.15188237]
[1742989120381,0.0003394,88277.0,88275.0,0.03535949]
[1742989120582,0.0003394,88277.0,88276.0,0.11652288]
[1742989120853,0.0003394,88277.0,88276.0,0.15188237]
[1742989122994,0.0003394,88277.0,88276.0,0.43098133]
[1742989123143,0.0003394,88277.0,88276.0,0.42871609]
[1742989123530,0.0003394,88277.0,88276.0,0.43071609]
[1742989125197,0.0003394,88277.0,88276.0,1.01867609]
[1742989125558,0.0003394,88277.0,88276.0,1.14431609]
[1742989126925,0.0003394,88277.0,88276.0,1.1089466]
[1742989128389,0.0003394,88277.0,88276.0,1.14437275]
[1742989129401,0.0003394,88277.0,88276.0,1.1589136]
[1742989130803,0.0003394,88277.0,88276.0,1.2414136]
[1742989131005,0.0003394,88277.0,88276.0,1.2415832]
[1742989136626,0.0003394,88277.0,88276.0,1.1159432]
[1742989136840,0.0003394,88277.0,88276.0,1.2415832]
[1742989141708,0.0003394,88277.0,88276.0,1.1159432]
[1742989142033,0.0003394,88277.0,88276.0,1.2415832]
[1742989144960,0.0003394,88277.0,88276.0,1.1590832]
[1742989145182,0.0003394,88277.0,88276.0,1.12365705]
[1742989145406,0.0003394,88277.0,88276.0,1.1590685]
[1742989145574,0.0003394,88277.0,88276.0,1.12365705]
[1742989145822,0.0003394,88277.0,88276.0,1.15906872]
[1742989146335,0.0003394,88277.0,88276.0,1.1091162]
[1742989150436,0.0003394,88277.0,88276.0,0.86922856]
[1742989150612,0.0003394,88277.0,88276.0,0.0031696]
[1742989150613,0.5865254,88277.0,88276.0,0.0031696]
[1742989150811,0.89091518,88277.0,88276.0,0.0031696]
[1742989151014,0.92026999,88277.0,88276.0,0.0031696]
[1742989151411,0.92026999,88277.0,88276.0,0.0011696]
[1742989151865,0.92126999,88277.0,88276.0,0.0011696]
[1742989152076,0.81400661,88277.0,88276.0,0.0011696]
[1742989152231,0.81400661,88277.0,88276.0,0.0001696]
[1742989152624,0.7982677,88277.0,88276.0,0.0001696]
[1742989153108,0.7962677,88277.0,88276.0,0.0001696]
[1742989153515,0.537902,88271.0,88270.0,0.03768951]
[1742989153718,0.537902,88271.0,88255.0,0.0001696]
[1742989153719,0.615043,88256.0,88255.0,0.0001696]
[1742989154105,0.62658164,88256.0,88255.0,0.00021069]
[1742989154733,0.90019692,88256.0,88255.0,0.00021069]
[1742989154942,0.78593928,88256.0,88255.0,0.00021069]
[1742989155695,0.526623,88252.0,88251.0,0.00254737]
[1742989155990,0.66371895,88252.0,88251.0,0.00254737]
[1742989157220,0.66371895,88252.0,88230.0,0.5882097]
[1742989157221,0.31531,88231.0,88230.0,0.5882097]
[1742989157415,0.31531,88231.0,88230.0,0.58862096]
[1742989157633,0.24980672,88231.0,88230.0,0.58862096]
[1742989157819,0.54980672,88231.0,88230.0,0.48892096]
[1742989158243,0.67588522,88231.0,88230.0,0.48892096]
[1742989158451,0.79014286,88231.0,88230.0,0.48892096]
[1742989158654,0.67688522,88231.0,88230.0,0.48892096]
[1742989158855,0.32461758,88231.0,88230.0,0.48892096]
[1742989159610,0.32961758,88231.0,88230.0,0.48892096]
[1742989160285,0.32861758,88231.0,88230.0,0.48892096]
[1742989160486,0.33161758,88231.0,88230.0,0.48892096]
[1742989160696,0.34936625,88231.0,88230.0,0.48892096]
[1742989161572,0.33161758,88231.0,88230.0,0.48892096]
[1742989162384,0.28459587,88231.0,88230.0,0.48892096]
[1742989162585,0.29825189,88231.0,88230.0,0.48892096]
[1742989163291,0.02147688,88231.0,88230.0,0.48892096]
[1742989163434,0.02847688,88231.0,88230.0,0.48892096]
[1742989163638,0.02547688,88231.0,88230.0,0.48892096]
[1742989164066,0.02847688,88231.0,88230.0,0.48892096]
[1742989164525,0.32847688,88231.0,88230.0,0.48892096]
[1742989165858,0.02847688,88231.0,88230.0,0.48892096]
[1742989166462,0.55515388,88231.0,88230.0,0.48892096]
[1742989166886,0.32847688,88231.0,88230.0,0.48892096]
[1742989167091,0.32847688,88231.0,88230.0,0.48909066]
[1742989168766,0.32847688,88231.0,88230.0,0.00058096]
[1742989177206,0.3,88230.0,88227.0,0.12130096]
[1742989177419,0.3,88230.0,88227.0,0.12134279]
[1742989177624,0.00965494,88229.0,88227.0,0.12134279]
[1742989177824,0.00965494,88229.0,88227.0,0.11134279]
[1742989178171,0.00965494,88229.0,88227.0,4.183e-05]
[1742989178769,0.005,88230.0,88227.0,4.183e-05]
[1742989179000,0.00965425,88229.0,88227.0,4.183e-05]
[1742989179518,0.01182086,88231.0,88227.0,4.183e-05]
[1742989179725,0.003,88229.0,88227.0,4.183e-05]
[1742989179950,0.656085,88228.0,88227.0,4.183e-05]
[1742989180156,0.67707051,88228.0,88227.0,4.183e-05]
[1742989181069,0.3,88214.0,88205.0,0.18121959]
[1742989181273,0.3,88214.0,88205.0,6.998e-05]
[1742989181476,0.00962835,88213.0,88205.0,6.998e-05]
[1742989182381,0.23635235,88213.0,88205.0,6.998e-05]
[1742989182576,0.00962835,88213.0,88205.0,6.998e-05]
[1742989182809,0.23835435,88213.0,88205.0,6.998e-05]
[1742989183033,0.01162835,88213.0,88205.0,6.998e-05]
[1742989183469,0.01162835,88213.0,88206.0,0.12572]